lending/lending_fUSD_20250210
["ID","MTS","AMOUNT","RATE_DAILY","PERIOD"]
[352640678,1739214646138,-500.0,0.00010958,2]
[352640680,1739214646147,-500.0,0.00010958,2]
[352640682,1739214646157,-500.0,0.00010958,2]
[352640684,1739214646166,-500.0,0.00010958,2]
[352640686,1739214646175,-500.0,0.00010958,2]
[352640688,1739214646185,-501.74765094,0.00010958,2]
[352640690,1739214646194,-500.0,0.00010958,2]
[352640692,1739214646203,-500.0,0.00010958,2]
[352640694,1739214646213,-559.16,0.00010958,2]
[352640696,1739214646222,-500.0,0.00010958,2]
[352640698,1739214646231,-557.36,0.00010958,2]
[352640700,1739214646241,-554.03,0.00010958,2]
[352640702,1739214646250,-506.14080545,0.00010958,2]
[352640704,1739214646259,-500.0,0.00010958,2]
[352640706,1739214646269,-500.0,0.00010958,2]
[352640708,1739214646279,-501.70901193,0.00010958,2]
[352640710,1739214646289,-500.0,0.00010958,2]
[352640712,1739214646299,-500.0,0.00010958,2]
[352640714,1739214646309,-500.0,0.00010958,2]
[352640716,1739214646318,-500.0,0.00010958,2]
[352640718,1739214646328,-500.0,0.00010958,2]
[352640720,1739214646338,-500.0,0.00010958,2]
[352640722,1739214646348,-500.0,0.00010958,2]
[352640724,1739214646358,-862.23,0.00010958,2]
[352640726,1739214646367,-500.0,0.00010958,2]
[352640728,1739214646377,-508.78,0.00010958,2]
[352640730,1739214646386,-500.0,0.00010958,2]
[352640732,1739214646396,-772.32,0.00010958,2]
[352640734,1739214646405,-500.0,0.00010958,2]
[352640736,1739214646415,-500.0,0.00010958,2]
[352640738,1739214646424,-500.0,0.00010958,2]
[352640740,1739214646433,-500.0,0.00010958,2]
[352640742,1739214646443,-500.0,0.00010958,2]
[352640744,1739214646452,-500.0,0.00010958,2]
[352640746,1739214646461,-500.0,0.00010958,2]
[352640748,1739214646471,-500.0,0.00010958,2]
[352640750,1739214646481,-500.0,0.00010958,2]
[352640752,1739214646492,-500.0,0.00010958,2]
[352640754,1739214646501,-500.0,0.00010958,2]
[352640756,1739214646512,-581.63,0.00010958,2]
[352640758,1739214646523,-500.0,0.00010958,2]
[352640760,1739214646537,-754.02,0.00010958,2]
[352640762,1739214646547,-500.0,0.00010958,2]
[352640765,1739214646556,-500.0,0.00010958,2]
[352640766,1739214646566,-500.0,0.00010958,2]
[352640769,1739214646576,-500.0,0.00010958,2]
[352640771,1739214646585,-500.0,0.00010958,2]
[352640772,1739214646595,-500.0,0.00010958,2]
[352640775,1739214646605,-678.64,0.00010958,2]
[352640777,1739214646614,-541.66,0.00010958,2]
[352640779,1739214646623,-942.99,0.00010958,2]
[352640780,1739214646633,-500.0,0.00010958,2]
[352640782,1739214646642,-1263.02,0.00010958,2]
[352640784,1739214646651,-529.69,0.00010958,2]
[352640786,1739214646660,-500.0,0.00010958,2]
[352640788,1739214646670,-500.0,0.00010958,2]
[352640790,1739214646680,-500.0,0.00010958,2]
[352640792,1739214646690,-522.51,0.00010958,2]
[352640794,1739214646699,-500.0,0.00010958,2]
[352640796,1739214646709,-500.0,0.00010958,2]
[352640799,1739214646720,-899.48,0.00010958,2]
[352640801,1739214646730,-500.0,0.00010958,2]
[352640803,1739214646739,-500.0,0.00010958,2]
[352640805,1739214646749,-500.25750918,0.00010958,2]
[352640807,1739214646759,-500.0,0.00010958,2]
[352640808,1739214646769,-500.0,0.00010958,2]
[352640810,1739214646780,-500.0,0.00010958,2]
[352640812,1739214646791,-500.0,0.00010958,2]
[352640815,1739214646801,-500.0,0.00010958,2]
[352640817,1739214646811,-500.0,0.00010958,2]
[352640819,1739214646823,-500.0,0.00010958,2]
[352640820,1739214646838,-500.0,0.00010958,2]
[352640822,1739214646848,-555.16,0.00010958,2]
[352640824,1739214646858,-500.0,0.00010958,2]
[352640826,1739214646867,-537.12,0.00010958,2]
[352640828,1739214646877,-500.0,0.00010958,2]
[352640830,1739214646886,-500.53314454,0.00010958,2]
[352640832,1739214646896,-500.0,0.00010958,2]
[352640834,1739214646906,-500.0,0.00010958,2]
[352640836,1739214646917,-615.37,0.00010958,2]
[352640838,1739214646927,-500.0,0.00010958,2]
[352640840,1739214646936,-500.0,0.00010958,2]
[352640842,1739214646945,-500.98717673,0.00010958,2]
[352640844,1739214646955,-500.0,0.00010958,2]
[352640846,1739214646964,-500.0,0.00010958,2]
[352640848,1739214646973,-563.68,0.00010958,2]
[352640850,1739214646983,-500.0,0.00010958,2]
[352640852,1739214646992,-500.0,0.00010958,2]
[352640854,1739214647001,-500.0,0.00010958,2]
[352640856,1739214647011,-500.0,0.00010958,2]
[352640858,1739214647021,-500.0,0.00010958,2]
[352640860,1739214647031,-500.0,0.00010958,2]
[352640862,1739214647040,-500.0,0.00010958,2]
[352640864,1739214647049,-500.0,0.00010958,2]
[352640866,1739214647059,-500.0,0.00010958,2]
[352640868,1739214647069,-782.75,0.00010958,2]
[352640870,1739214647078,-1104.57,0.00010958,2]
[352640872,1739214647088,-500.0,0.00010958,2]
[352640874,1739214647098,-588.28,0.00010958,2]
[352640876,1739214647107,-890.38,0.00010958,2]
[352640878,1739214647116,-500.0,0.00010958,2]
[352640880,1739214647126,-500.0,0.00010958,2]
[352640882,1739214647136,-500.0,0.00010958,2]
[352640884,1739214647146,-261.79039347,0.00010958,2]
[352640886,1739214647156,-601.16,0.00010958,2]
[352640898,1739214647261,-500.0,0.00010958,2]
[352640900,1739214647272,-500.0,0.00010958,2]
[352640902,1739214647282,-500.0,0.00010958,2]
[352640904,1739214647292,-500.0,0.00010958,2]
[352640906,1739214647302,-563.93,0.00010958,2]
[352640907,1739214647311,-500.0,0.00010958,2]
[352640908,1739214647321,-500.0,0.00010958,2]
[352640909,1739214647330,-520.74321088,0.00010958,2]
[352640910,1739214647339,-500.0,0.00010958,2]
[352640911,1739214647349,-500.0,0.00010958,2]
[352640912,1739214647358,-500.0,0.00010958,2]
[352640913,1739214647367,-500.0,0.00010958,2]
[352640914,1739214647377,-533.78,0.00010958,2]
[352640916,1739214647386,-500.0,0.00010958,2]
[352640918,1739214647397,-500.0,0.00010958,2]
[352640920,1739214647407,-500.0,0.00010958,2]
[352640922,1739214647417,-631.90445912,0.00010958,2]
[352640924,1739214647427,-500.0,0.00010958,2]
[352640926,1739214647437,-590.18,0.00010958,2]
[352640928,1739214647446,-500.0,0.00010958,2]
[352640930,1739214647456,-928.31,0.00010958,2]
[352640932,1739214647466,-500.0,0.00010958,2]
[352640934,1739214647476,-500.0,0.00010958,2]
[352640936,1739214647486,-991.9,0.00010958,2]
[352640938,1739214647496,-861.66,0.00010958,2]
[352640940,1739214647506,-500.0,0.00010958,2]
[352640941,1739214647515,-500.0,0.00010958,2]
[352640943,1739214647525,-500.0,0.00010958,2]
[352640945,1739214647536,-500.0,0.00010958,2]
[352640947,1739214647547,-500.0,0.00010958,2]
[352640949,1739214647556,-500.0,0.00010958,2]
[352640951,1739214647566,-500.0,0.00010958,2]
[352640953,1739214647577,-500.0,0.00010958,2]
[352640955,1739214647586,-567.04,0.00010958,2]
[352640957,1739214647596,-500.0,0.00010958,2]
[352640959,1739214647606,-500.0,0.00010958,2]
[352640961,1739214647616,-500.0,0.00010958,2]
[352640963,1739214647625,-500.0,0.00010958,2]
[352640965,1739214647635,-615.65,0.00010958,2]
[352640967,1739214647645,-500.0,0.00010958,2]
[352640969,1739214647656,-594.07,0.00010958,2]
[352640971,1739214647667,-500.0,0.00010958,2]
[352640973,1739214647677,-500.0,0.00010958,2]
[352640975,1739214647687,-165.53918589,0.00010958,2]
[352640977,1739214647698,-500.0,0.00010958,2]
[352640979,1739214647709,-700.59,0.00010958,2]
[352640981,1739214647721,-500.0,0.00010958,2]
[352640983,1739214647731,-583.81,0.00010958,2]
[352640985,1739214647742,-500.0,0.00010958,2]
[352640987,1739214647762,-500.0,0.00010958,2]
[352640989,1739214647772,-500.0,0.00010958,2]
[352640991,1739214647782,-500.0,0.00010958,2]
[352640993,1739214647792,-500.0,0.00010958,2]
[352640995,1739214647801,-500.0,0.00010958,2]
[352640997,1739214647811,-500.0,0.00010958,2]
[352640999,1739214647821,-991.6,0.00010958,2]
[352641001,1739214647834,-586.10374856,0.00010958,2]
[352641003,1739214647844,-500.0,0.00010958,2]
[352641005,1739214647854,-500.0,0.00010958,2]
[352641007,1739214647865,-500.0,0.00010958,2]
[352641009,1739214647875,-500.0,0.00010958,2]
[352641011,1739214647884,-525.59,0.00010958,2]
[352641013,1739214647895,-500.0,0.00010958,2]
[352641015,1739214647907,-493.44996051,0.00010958,2]
[352641019,1739214647946,-6.55003949,0.00010958,2]
[352641021,1739214647958,-595.5,0.00010958,2]
[352641023,1739214647969,-500.0,0.00010958,2]
[352641025,1739214647979,-845.54,0.00010958,2]
[352641027,1739214647989,-500.0,0.00010958,2]
[352641029,1739214647999,-14.45812664,0.00010958,2]
[352641036,1739214648058,-485.54187336,0.00010958,2]
[352641038,1739214648069,-500.0,0.00010958,2]
[352641040,1739214648079,-500.0,0.00010958,2]
[352641042,1739214648090,-500.0,0.00010958,2]
[352641044,1739214648101,-513.67792107,0.00010958,2]
[352641046,1739214648111,-500.0,0.00010958,2]
[352641048,1739214648122,-500.0,0.00010958,2]
[352641050,1739214648135,-888.81,0.00010958,2]
[352641052,1739214648148,-551.03,0.00010958,2]
[352641054,1739214648158,-522.61,0.00010958,2]
[352641056,1739214648168,-500.0,0.00010958,2]
[352641058,1739214648178,-500.0,0.00010958,2]
[352641060,1739214648188,-500.0,0.00010958,2]
[352641062,1739214648199,-500.0,0.00010958,2]
[352641064,1739214648210,-594.24,0.00010958,2]
[352641066,1739214648220,-651.15,0.00010958,2]
[352641068,1739214648230,-500.0,0.00010958,2]
[352641070,1739214648240,-604.57,0.00010958,2]
[352641072,1739214648251,-643.3,0.00010958,2]
[352641074,1739214648261,-500.0,0.00010958,2]
[352641076,1739214648271,-500.0,0.00010958,2]
[352641078,1739214648282,-500.0,0.00010958,2]
[352641080,1739214648293,-500.0,0.00010958,2]
[352641082,1739214648304,-500.0,0.00010958,2]
[352641084,1739214648316,-1043.77,0.00010958,2]
[352641086,1739214648327,-500.0,0.00010958,2]
[352641088,1739214648338,-500.0,0.00010958,2]
[352641090,1739214648349,-500.0,0.00010958,2]
[352641092,1739214648360,-500.0,0.00010958,2]
[352641094,1739214648371,-500.0,0.00010958,2]
[352641096,1739214648382,-500.0,0.00010958,2]
[352641098,1739214648393,-500.0,0.00010958,2]
[352641100,1739214648403,-500.0,0.00010958,2]
[352641102,1739214648414,-500.0,0.00010958,2]
[352641104,1739214648424,-520.83,0.00010958,2]
[352641106,1739214648434,-500.0,0.00010958,2]
[352641108,1739214648445,-500.0,0.00010958,2]
[352641110,1739214648455,-500.0,0.00010958,2]
[352641112,1739214648464,-500.0,0.00010958,2]
[352641114,1739214648475,-500.0,0.00010958,2]
[352641116,1739214648486,-500.0,0.00010958,2]
[352641118,1739214648497,-500.0,0.00010958,2]
[352641120,1739214648507,-500.0,0.00010958,2]
[352641122,1739214648518,-625.26,0.00010958,2]
[352641124,1739214648529,-500.0,0.00010958,2]
[352641126,1739214648542,-500.0,0.00010958,2]
[352641128,1739214648553,-500.0,0.00010958,2]
[352641130,1739214648564,-500.0,0.00010958,2]
[352641132,1739214648574,-500.0,0.00010958,2]
[352641134,1739214648584,-500.0,0.00010958,2]
[352641136,1739214648594,-1382.79,0.00010958,2]
[352641138,1739214648604,-1269.88,0.00010958,2]
[352641140,1739214648614,-357.7146739,0.00010958,2]
[352641142,1739214648623,-513.14534012,0.00010958,2]
[352641144,1739214648633,-500.0,0.00010958,2]
[352641146,1739214648644,-500.0,0.00010958,2]
[352641148,1739214648654,-1734.54,0.00010958,2]
[352641150,1739214648664,-500.0,0.00010958,2]
[352641152,1739214648673,-500.0,0.00010958,2]
[352641154,1739214648683,-1402.1,0.00010958,2]
[352641156,1739214648692,-500.0,0.00010958,2]
[352641158,1739214648701,-500.0,0.00010958,2]
[352641160,1739214648711,-500.0,0.00010958,2]
[352641162,1739214648721,-855.84,0.00010958,2]
[352641164,1739214648732,-500.0,0.00010958,2]
[352641166,1739214648743,-500.0,0.00010958,2]
[352641168,1739214648753,-1057.96,0.00010958,2]
[352641170,1739214648763,-500.0,0.00010958,2]
[352641172,1739214648772,-500.0,0.00010958,2]
[352641174,1739214648783,-500.0,0.00010958,2]
[352641176,1739214648793,-500.0,0.00010958,2]
[352641178,1739214648804,-500.0,0.00010958,2]
[352641181,1739214648816,-500.0,0.00010958,2]
[352641183,1739214648828,-500.0,0.00010958,2]
[352641185,1739214648840,-500.0,0.00010958,2]
[352641187,1739214648851,-644.43,0.00010958,2]
[352641189,1739214648862,-500.0,0.00010958,2]
[352641191,1739214648874,-2109.2,0.00010958,2]
[352641195,1739214648987,-500.0,0.00010958,2]
[352641197,1739214648999,-2097.71,0.00010958,2]
[352641199,1739214649010,-692.24,0.00010958,2]
[352641201,1739214649020,-500.0,0.00010958,2]
[352641203,1739214649030,-500.0,0.00010958,2]
[352641205,1739214649041,-311.51422001,0.00010958,2]
[352641207,1739214649050,-612.76,0.00010958,2]
[352641209,1739214649060,-500.0,0.00010958,2]
[352641211,1739214649069,-500.0,0.00010958,2]
[352641213,1739214649079,-2213.24,0.00010958,2]
[352641215,1739214649090,-500.0,0.00010958,2]
[352641217,1739214649100,-500.0,0.00010958,2]
[352641219,1739214649110,-500.0,0.00010958,2]
[352641221,1739214649122,-2406.88,0.00010958,2]
[352641223,1739214649132,-1016.36,0.00010958,2]
[352641225,1739214649143,-1237.39,0.00010958,2]
[352641227,1739214649154,-6290.59,0.00010958,2]
[352641229,1739214649164,-2758.72,0.00010958,2]
[352641231,1739214649174,-500.0,0.00010958,2]
[352641233,1739214649185,-500.0,0.00010958,2]
[352641235,1739214649194,-500.0,0.00010958,2]
[352641237,1739214649204,-500.0,0.00010958,2]
[352641239,1739214649214,-500.0,0.00010958,2]
[352641241,1739214649224,-500.0,0.00010958,2]
[352641243,1739214649233,-982.96,0.00010958,2]
[352641245,1739214649243,-1270.36,0.00010958,2]
[352641247,1739214649253,-500.0,0.00010958,2]
[352641249,1739214649263,-500.0,0.00010958,2]
[352641251,1739214649275,-500.0,0.00010958,2]
[352641253,1739214649286,-500.0,0.00010958,2]
[352641256,1739214649295,-500.0,0.00010958,2]
[352641258,1739214649306,-482.31389799,0.00010958,2]
[352641260,1739214649316,-1311.94,0.00010958,2]
[352641262,1739214649326,-500.0,0.00010958,2]
[352641264,1739214649336,-698.11,0.00010958,2]
[352641266,1739214649345,-500.0,0.00010958,2]
[352641268,1739214649355,-500.0,0.00010958,2]
[352641269,1739214649365,-1083.8,0.00010958,2]
[352641271,1739214649373,-500.0,0.00010958,2]
[352641273,1739214649383,-1151.92,0.00010958,2]
[352641275,1739214649392,-500.0,0.00010958,2]
[352641277,1739214649401,-500.0,0.00010958,2]
[352641279,1739214649411,-679.73,0.00010958,2]
[352641281,1739214649420,-500.0,0.00010958,2]
[352641283,1739214649430,-500.0,0.00010958,2]
[352641285,1739214649439,-671.09,0.00010958,2]
[352641287,1739214649449,-500.0,0.00010958,2]
[352641289,1739214649459,-1557.56,0.00010958,2]
[352641291,1739214649468,-989.48,0.00010958,2]
[352641293,1739214649478,-500.0,0.00010958,2]
[352641294,1739214649487,-1413.3,0.00010958,2]
[352641296,1739214649496,-585.05,0.00010958,2]
[352641298,1739214649505,-500.0,0.00010958,2]
[352641300,1739214649514,-552.42289723,0.00010958,2]
[352641302,1739214649524,-500.0,0.00010958,2]
[352641304,1739214649534,-1373.12,0.00010958,2]
[352641306,1739214649544,-872.34,0.00010958,2]
[352641308,1739214649553,-500.0,0.00010958,2]
[352641310,1739214649563,-500.0,0.00010958,2]
[352641312,1739214649573,-774.05,0.00010958,2]
[352641314,1739214649582,-500.0,0.00010958,2]
[352641316,1739214649592,-677.7,0.00010958,2]
[352641318,1739214649601,-500.0,0.00010958,2]
[352641320,1739214649611,-728.01,0.00010958,2]
[352641322,1739214649620,-500.0,0.00010958,2]
[352641324,1739214649629,-500.0,0.00010958,2]
[352641326,1739214649638,-1073.18,0.00010958,2]
[352641328,1739214649647,-1025.88,0.00010958,2]
[352641330,1739214649657,-1518.88,0.00010958,2]
[352641332,1739214649666,-918.63,0.00010958,2]
[352641334,1739214649676,-508.72,0.00010958,2]
[352641336,1739214649685,-500.0,0.00010958,2]
[352641338,1739214649698,-599.05,0.00010958,2]
[352641340,1739214649709,-1299.31,0.00010958,2]
[352641342,1739214649718,-171.369193,0.00010958,2]
[352641344,1739214649728,-854.17,0.00010958,2]
[352641346,1739214649738,-534.94322166,0.00010958,2]
[352641348,1739214649747,-241.56930154,0.00010958,2]
[352641351,1739214649758,-500.0,0.00010958,2]
[352641352,1739214649767,-500.0,0.00010958,2]
[352641354,1739214649776,-1316.88,0.00010958,2]
[352641357,1739214649787,-500.0,0.00010958,2]
[352641359,1739214649796,-500.0,0.00010958,2]
[352641361,1739214649805,-1367.41,0.00010958,2]
[352641363,1739214649814,-500.0,0.00010958,2]
[352641365,1739214649825,-500.0,0.00010958,2]
[352641367,1739214649837,-500.0,0.00010958,2]
[352641368,1739214649846,-500.0,0.00010958,2]
[352641371,1739214649855,-1174.05,0.00010958,2]
[352641373,1739214649867,-159.486218,0.00010958,2]
[352641375,1739214649876,-500.0,0.00010958,2]
[352641377,1739214649885,-500.0,0.00010958,2]
[352641379,1739214649894,-1467.55,0.00010958,2]
[352641381,1739214649903,-548.25,0.00010958,2]
[352641383,1739214649913,-2771.07,0.00010958,2]
[352641385,1739214649923,-500.0,0.00010958,2]
[352641387,1739214649932,-500.0,0.00010958,2]
[352641389,1739214649941,-606.59,0.00010958,2]
[352641391,1739214649949,-500.0,0.00010958,2]
[352641393,1739214649958,-814.39,0.00010958,2]
[352641395,1739214649968,-500.0,0.00010958,2]
[352641397,1739214649976,-1396.88,0.00010958,2]
[352641399,1739214649985,-500.0,0.00010958,2]
[352641401,1739214649994,-500.0,0.00010958,2]
[352641403,1739214650004,-742.1,0.00010958,2]
[352641405,1739214650014,-542.61,0.00010958,2]
[352641407,1739214650023,-765.19,0.00010958,2]
[352641409,1739214650032,-500.0,0.00010958,2]
[352641411,1739214650042,-500.0,0.00010958,2]
[352641413,1739214650051,-2656.36,0.00010958,2]
[352641415,1739214650060,-553.19108828,0.00010958,2]
[352641417,1739214650070,-1519.67,0.00010958,2]
[352641419,1739214650079,-1646.5,0.00010958,2]
[352641421,1739214650088,-500.0,0.00010958,2]
[352641423,1739214650097,-745.35,0.00010958,2]
[352641425,1739214650107,-500.0,0.00010958,2]
[352641426,1739214650116,-627.55,0.00010958,2]
[352641429,1739214650126,-500.0,0.00010958,2]
[352641431,1739214650136,-500.0,0.00010958,2]
[352641433,1739214650145,-500.0,0.00010958,2]
[352641435,1739214650155,-2369.78,0.00010958,2]
[352641437,1739214650165,-1244.97,0.00010958,2]
[352641439,1739214650174,-1528.02,0.00010958,2]
[352641441,1739214650183,-500.0,0.00010958,2]
[352641443,1739214650192,-500.0,0.00010958,2]
[352641445,1739214650202,-500.0,0.00010958,2]
[352641447,1739214650212,-1382.04,0.00010958,2]
[352641449,1739214650222,-2221.55,0.00010958,2]
[352641451,1739214650232,-936.58,0.00010958,2]
[352641453,1739214650241,-500.0,0.00010958,2]
[352641455,1739214650251,-7130.5,0.00010958,2]
[352641457,1739214650260,-538.47,0.00010958,2]
[352641459,1739214650270,-1535.16,0.00010958,2]
[352641460,1739214650279,-500.0,0.00010958,2]
[352641461,1739214650288,-1613.37,0.00010958,2]
[352641462,1739214650297,-500.0,0.00010958,2]
[352641463,1739214650306,-500.0,0.00010958,2]
[352641464,1739214650315,-1203.83,0.00010958,2]
[352641465,1739214650324,-500.0,0.00010958,2]
[352641466,1739214650333,-1876.85,0.00010958,2]
[352641467,1739214650342,-754.6,0.00010958,2]
[352641469,1739214650352,-1151.72,0.00010958,2]
[352641480,1739214650450,-500.0,0.00010958,2]
[352641482,1739214650459,-500.0,0.00010958,2]
[352641484,1739214650469,-500.0,0.00010958,2]
[352641486,1739214650480,-1245.81,0.00010958,2]
[352641488,1739214650489,-1200.28,0.00010958,2]
[352641490,1739214650498,-500.0,0.00010958,2]
[352641492,1739214650508,-340.02221744,0.00010958,2]
[352641494,1739214650517,-821.22,0.00010958,2]
[352641496,1739214650526,-989.94,0.00010958,2]
[352641498,1739214650536,-1575.38,0.00010958,2]
[352641500,1739214650545,-500.0,0.00010958,2]
[352641502,1739214650555,-500.0,0.00010958,2]
[352641504,1739214650564,-1699.57,0.00010958,2]
[352641506,1739214650573,-1326.86,0.00010958,2]
[352641508,1739214650583,-2493.69,0.00010958,2]
[352641510,1739214650593,-616.61,0.00010958,2]
[352641513,1739214650603,-500.0,0.00010958,2]
[352641514,1739214650612,-689.67,0.00010958,2]
[352641516,1739214650622,-1605.98,0.00010958,2]
[352641518,1739214650631,-795.19,0.00010958,2]
[352641520,1739214650641,-3483.96,0.00010958,2]
[352641522,1739214650651,-2459.15,0.00010958,2]
[352641524,1739214650661,-500.0,0.00010958,2]
[352641526,1739214650671,-500.0,0.00010958,2]
[352641528,1739214650680,-2304.95,0.00010958,2]
[352641530,1739214650690,-628.12,0.00010958,2]
[352641532,1739214650699,-1408.96,0.00010958,2]
[352641534,1739214650708,-500.0,0.00010958,2]
[352641536,1739214650717,-1803.27,0.00010958,2]
[352641538,1739214650726,-1384.34,0.00010958,2]
[352641540,1739214650736,-536.14328419,0.00010958,2]
[352641542,1739214650745,-500.0,0.00010958,2]
[352641544,1739214650754,-1975.37,0.00010958,2]
[352641546,1739214650764,-1096.85,0.00010958,2]
[352641548,1739214650773,-572.51,0.00010958,2]
[352641550,1739214650782,-670.64,0.00010958,2]
[352641552,1739214650791,-151.0,0.00010958,2]
[352641554,1739214650801,-151.0,0.00010958,2]
[352641556,1739214650811,-891.58,0.00010958,2]
[352641558,1739214650820,-500.0,0.00010958,2]
[352641560,1739214650833,-151.0,0.00010958,2]
[352641562,1739214650842,-1856.08,0.00010958,2]
[352641564,1739214650851,-151.0,0.00010958,2]
[352641566,1739214650861,-2556.7,0.00010958,2]
[352641568,1739214650870,-500.0,0.00010958,2]
[352641570,1739214650881,-1587.89,0.00010958,2]
[352641572,1739214650890,-1014.23,0.00010958,2]
[352641574,1739214650899,-500.0,0.00010958,2]
[352641576,1739214650911,-1936.82,0.00010958,2]
[352641578,1739214650920,-855.54,0.00010958,2]
[352641580,1739214650930,-500.0,0.00010958,2]
[352641582,1739214650939,-4052.76,0.00010958,2]
[352641584,1739214650948,-1653.98,0.00010958,2]
[352641586,1739214650957,-500.0,0.00010958,2]
[352641588,1739214650966,-797.99,0.00010958,2]
[352641590,1739214650976,-225.41957089,0.00010958,2]
[352641592,1739214650985,-500.0,0.00010958,2]
[352641594,1739214650994,-1034.14,0.00010958,2]
[352641596,1739214651003,-500.0,0.00010958,2]
[352641598,1739214651013,-500.0,0.00010958,2]
[352641600,1739214651022,-912.62,0.00010958,2]
[352641602,1739214651031,-557.96441779,0.00010958,2]
[352641604,1739214651044,-3099.07,0.00010958,2]
[352641607,1739214651053,-1354.64,0.00010958,2]
[352641609,1739214651063,-775.38,0.00010958,2]
[352641610,1739214651073,-500.02,0.00010958,2]
[352641613,1739214651090,-500.0,0.00010958,2]
[352641616,1739214651105,-573.5,0.00010958,2]
[352641619,1739214651125,-500.0,0.00010958,2]
[352641622,1739214651143,-2152.57,0.00010958,2]
[352641625,1739214651157,-500.0,0.00010958,2]
[352641627,1739214651175,-500.0,0.00010958,2]
[352641630,1739214651193,-1892.47,0.00010958,2]
[352641633,1739214651212,-3196.04,0.00010958,2]
[352641636,1739214651229,-500.0,0.00010958,2]
[352641639,1739214651246,-1472.1,0.00010958,2]
[352641642,1739214651264,-500.0,0.00010958,2]
[352641644,1739214651277,-581.27,0.00010958,2]
[352641647,1739214651296,-500.0,0.00010958,2]
[352641649,1739214651308,-500.0,0.00010958,2]
[352641652,1739214651326,-775.88,0.00010958,2]
[352641655,1739214651340,-500.0,0.00010958,2]
[352641657,1739214651356,-500.42,0.00010958,2]
[352641660,1739214651372,-500.0,0.00010958,2]
[352641663,1739214651387,-2523.98,0.00010958,2]
[352641665,1739214651404,-500.0,0.00010958,2]
[352641668,1739214651420,-500.0,0.00010958,2]
[352641671,1739214651434,-1390.46,0.00010958,2]
[352641673,1739214651449,-2318.5,0.00010958,2]
[352641676,1739214651464,-1941.81,0.00010958,2]
[352641678,1739214651482,-500.0,0.00010958,2]
[352641681,1739214651497,-1218.03,0.00010958,2]
[352641683,1739214651512,-500.0,0.00010958,2]
[352641684,1739214651529,-633.64,0.00010958,2]
[352641685,1739214651548,-628.32,0.00010958,2]
[352641686,1739214651563,-1055.26,0.00010958,2]
[352641687,1739214651579,-516.2,0.00010958,2]
[352641689,1739214651594,-1035.16,0.00010958,2]
[352641691,1739214651609,-1319.18,0.00010958,2]
[352641694,1739214651624,-552.52,0.00010958,2]
[352641697,1739214651639,-2633.48,0.00010958,2]
[352641699,1739214651654,-500.0,0.00010958,2]
[352641702,1739214651669,-502.67,0.00010958,2]
[352641704,1739214651684,-500.0,0.00010958,2]
[352641707,1739214651697,-500.0,0.00010958,2]